bitfinex/quotes_BTCUSD_20260103
["timestamp","ask_amount","ask_price","bid_price","bid_amount"]
[1767422664490,0.01111827,89942.0,89937.0,0.01111889]
[1767422664705,0.06670902,89943.0,89942.0,0.000999]
[1767422664912,0.05896562,89942.0,89937.0,0.01111889]
[1767422665061,0.01111827,89942.0,89936.0,0.01111901]
[1767422665263,0.01111839,89941.0,89934.0,0.01111926]
[1767422665694,0.01111852,89940.0,89936.0,0.01111901]
[1767422666376,0.01111852,89940.0,89930.0,0.21768075]
[1767422666377,0.01112099,89920.0,89903.0,0.0002]
[1767422666534,0.01112149,89916.0,89913.0,0.07980004]
[1767422666874,0.01012249,89916.0,89913.0,0.07980004]
[1767422667208,0.01112149,89916.0,89913.0,0.07980004]
[1767422667431,0.01112136,89917.0,89913.0,0.07980004]
[1767422667633,0.01112124,89918.0,89913.0,0.09096599]
[1767422667837,0.02224112,89919.0,89914.0,0.01112173]
[1767422668037,0.01112,89919.0,89913.0,0.06677475]
[1767422668381,0.01112,89919.0,89915.0,0.01112161]
[1767422668737,0.02224112,89919.0,89914.0,0.01112173]
[1767422669136,0.01112,89919.0,89914.0,0.01112173]
[1767422669338,0.02224112,89919.0,89914.0,0.01112173]
[1767422669517,0.02224112,89919.0,89915.0,0.01112161]
[1767422669874,0.01112,89919.0,89915.0,0.01112161]
[1767422670226,0.02224112,89919.0,89913.0,0.01116595]
[1767422671178,0.01112074,89922.0,89919.0,0.000999]
[1767422671533,0.01112062,89923.0,89918.0,0.01112124]
[1767422672233,0.01112074,89922.0,89917.0,0.01112136]
[1767422672442,0.01112074,89922.0,89916.0,0.01112149]
[1767422672642,0.01112062,89923.0,89918.0,0.01112124]
[1767422673041,0.01112074,89922.0,89917.0,0.01112136]
[1767422673637,0.01112074,89922.0,89918.0,0.01112124]
[1767422673862,0.01112062,89923.0,89918.0,0.01112124]
[1767422674439,0.01112062,89923.0,89919.0,0.01112112]
[1767422674626,0.01112062,89923.0,89918.0,0.01112124]
[1767422675028,0.01112062,89923.0,89919.0,0.01112112]
[1767422675652,0.0222405,89924.0,89919.0,0.01112112]
[1767422675852,0.01112062,89923.0,89919.0,0.01112112]
[1767422676244,0.01112074,89922.0,89917.0,0.01112136]
[1767422676654,0.01112062,89923.0,89918.0,0.01112124]
[1767422676897,0.01112074,89922.0,89917.0,0.01112136]
[1767422677112,0.01112087,89921.0,89914.0,0.01112173]
[1767422677314,0.01112099,89920.0,89914.0,0.01112173]
[1767422677493,0.01112099,89920.0,89913.0,0.05565299]
[1767422677494,0.01112099,89920.0,89913.0,0.05565293]
[1767422677706,0.06672672,89919.0,89913.0,4.409e-05]
[1767422677908,0.01112149,89916.0,89913.0,4.409e-05]
[1767422678273,0.01112136,89917.0,89913.0,4.409e-05]
[1767422678713,0.06672672,89919.0,89913.0,4.409e-05]
[1767422678927,0.01112112,89919.0,89914.0,0.01112173]
[1767422679339,0.01112074,89922.0,89915.0,0.01112161]
[1767422679579,0.01112099,89920.0,89919.0,0.000999]
[1767422679755,0.01112099,89920.0,89915.0,0.01112161]
[1767422680162,0.01112099,89920.0,89916.0,0.01112149]
[1767422680842,0.01112087,89921.0,89916.0,0.01112149]
[1767422683166,0.01112099,89920.0,89915.0,0.01112161]
[1767422684539,0.06672933,89916.0,89913.0,4.409e-05]
[1767422684753,0.05560847,89915.0,89913.0,4.409e-05]
[1767422685416,0.06672933,89916.0,89913.0,4.409e-05]
[1767422685592,0.01112149,89916.0,89913.0,4.409e-05]
[1767422688191,0.27095498,89923.0,89616.0,0.01741557]
[1767422688192,0.01112248,89908.0,89903.0,0.04828249]
[1767422688395,0.01112248,89908.0,89903.0,0.00056073]
[1767422688396,0.0111226,89907.0,89903.0,0.00056073]
[1767422688590,0.01112272,89906.0,89903.0,0.00056073]
[1767422688884,0.05561425,89905.0,89903.0,7.3e-07]
[1767422689107,0.05561425,89905.0,89900.0,0.48258709]
[1767422689260,0.05561642,89902.0,89900.0,0.48214909]
[1767422689665,0.05562044,89895.0,89894.0,0.00023681]
[1767422690073,0.05562044,89895.0,89894.0,1e-08]
[1767422690273,0.06674328,89897.0,89894.0,1e-08]
[1767422690477,0.05562044,89895.0,89894.0,1e-08]
[1767422691691,0.06674328,89897.0,89894.0,1e-08]
[1767422692568,0.01112384,89897.0,89894.0,1e-08]
[1767422693139,0.04854077,89896.0,89894.0,1e-08]
[1767422694334,0.10416064,89896.0,89894.0,1e-08]
[1767422694532,0.04854077,89896.0,89894.0,1e-08]
[1767422694976,0.05562044,89895.0,89894.0,1e-08]
[1767422695150,0.05562044,89895.0,89880.0,0.28187161]
[1767422695151,0.01112446,89892.0,89884.0,0.01112545]
[1767422695352,0.01112557,89883.0,89875.0,0.0002]
[1767422695554,0.01012806,89879.0,89875.0,0.0002]
[1767422695757,0.01112495,89888.0,89880.0,0.01112594]
[1767422695957,0.01112495,89888.0,89883.0,0.01112557]
[1767422696155,0.0222447,89890.0,89884.0,0.01112545]
[1767422696368,0.01112,89890.0,89885.0,0.01112532]
[1767422696768,0.0222447,89890.0,89885.0,0.01112532]
[1767422697016,0.01112,89890.0,89887.0,0.01112507]
[1767422697459,0.01112421,89894.0,89887.0,0.01112507]
[1767422697668,0.0707851,89893.0,89887.0,0.01112507]
[1767422697894,0.04854077,89892.0,89887.0,0.01112507]
[1767422698264,0.000999,89887.0,89883.0,0.01112557]
[1767422698506,0.01112483,89889.0,89883.0,0.01112557]
[1767422698709,0.01112483,89889.0,89882.0,0.01112569]
[1767422698923,0.0111247,89890.0,89884.0,0.01112545]
[1767422699222,0.0111247,89890.0,89885.0,0.01112532]
[1767422699466,0.02224483,89889.0,89882.0,0.06675417]
[1767422699646,0.000999,89885.0,89883.0,0.01112557]
[1767422700146,0.01112,89889.0,89885.0,0.01112532]
[1767422700393,0.0111247,89890.0,89888.0,0.01112495]
[1767422700394,0.01112,89890.0,89888.0,0.01112495]
[1767422700565,0.01112421,89894.0,89889.0,0.01112483]
[1767422700774,0.01112,89890.0,89889.0,0.01112483]
[1767422701199,0.01112,89892.0,89891.0,0.01112458]
[1767422701662,0.01112371,89898.0,89892.0,0.01112446]
[1767422701831,0.01112384,89897.0,89894.0,0.04543273]
[1767422702036,0.02224384,89897.0,89894.0,0.04543273]
[1767422702235,0.01112,89897.0,89894.0,0.04543273]
[1767422702438,0.02224384,89897.0,89894.0,0.04543273]
[1767422703411,0.01112384,89897.0,89894.0,0.04543273]
[1767422703802,0.06674321,89897.0,89894.0,0.04543273]
[1767422704199,0.01112384,89897.0,89894.0,0.04543273]
[1767422705448,0.01112384,89897.0,89892.0,0.01112446]
[1767422705650,0.01112384,89897.0,89892.0,0.05655719]
[1767422706395,0.01112384,89897.0,89893.0,0.04543273]
[1767422707456,0.02224359,89899.0,89893.0,0.05655706]
[1767422707865,0.01112371,89898.0,89893.0,0.05655706]
[1767422709076,0.00049759,89903.0,89900.0,0.0565562]
[1767422711600,0.01112223,89910.0,89898.0,0.01112371]
[1767422711601,0.06676981,89913.0,89907.0,0.04543273]
[1767422711780,0.06696981,89913.0,89907.0,0.00010803]
[1767422712096,0.0111221,89911.0,89907.0,0.00010803]
[1767422712644,0.01112223,89910.0,89907.0,0.00010803]
[1767422712783,0.0111221,89911.0,89907.0,0.00010803]
[1767422713777,0.07805167,89913.0,89907.0,0.00010803]
[1767422714585,0.0111221,89911.0,89907.0,0.01123063]
[1767422714792,0.07805167,89913.0,89907.0,0.01123063]
[1767422714912,0.01112173,89914.0,89908.0,0.01112248]
[1767422715116,0.02228149,89916.0,89912.0,0.000999]
[1767422715319,0.02228149,89916.0,89910.0,0.01112223]
[1767422715538,0.01112173,89914.0,89910.0,0.01112223]
[1767422715939,0.01112161,89915.0,89910.0,0.01112223]
[1767422717865,0.02228149,89916.0,89911.0,0.0111221]
[1767422718460,0.01112149,89916.0,89912.0,0.04543273]
[1767422718662,0.01112161,89915.0,89912.0,0.04543273]
[1767422719004,0.01112161,89915.0,89910.0,0.01112223]
[1767422719355,0.01112149,89916.0,89910.0,0.05655496]
[1767422719767,0.01112149,89916.0,89911.0,0.0111221]
[1767422720690,0.01112136,89917.0,89912.0,0.01112198]
[1767422720899,0.01112149,89916.0,89911.0,0.0111221]
[1767422721275,0.01112149,89916.0,89912.0,0.01112198]
[1767422721610,0.01112136,89917.0,89912.0,0.01112198]
[1767422721835,0.01112149,89916.0,89911.0,0.0111221]
[1767422722038,0.01112149,89916.0,89911.0,0.05655483]
[1767422722605,0.01112149,89916.0,89911.0,0.0111221]
[1767422723992,0.01112149,89916.0,89912.0,0.01112198]
[1767422724491,0.01112149,89916.0,89910.0,0.01112223]
[1767422725383,0.01112186,89913.0,89910.0,0.04543273]
[1767422725593,0.01112186,89913.0,89908.0,0.04543273]
[1767422725729,0.01112186,89913.0,89908.0,0.05655521]
[1767422726560,0.01112186,89913.0,89909.0,0.01112235]
[1767422726771,0.01112186,89913.0,89908.0,0.05655521]
[1767422729527,0.01107815,89914.0,89909.0,0.01112235]
[1767422730079,0.01107815,89914.0,89909.0,0.06096589]
[1767422730283,0.01112161,89915.0,89909.0,0.06096589]
[1767422730842,0.01112173,89914.0,89910.0,0.01112223]
[1767422731045,0.01112173,89914.0,89910.0,0.06096577]
[1767422731886,0.01112161,89915.0,89910.0,0.06096577]
[1767422732493,0.01112173,89914.0,89910.0,0.04984354]
[1767422732692,0.01112161,89915.0,89910.0,0.06096577]
[1767422733941,0.01112161,89915.0,89911.0,0.0111221]
[1767422734124,0.01112173,89914.0,89909.0,0.01112235]
[1767422734319,0.01112173,89914.0,89910.0,0.01112223]
[1767422735542,0.01112161,89915.0,89910.0,0.01112223]
[1767422736781,0.01112173,89914.0,89910.0,0.04984354]
[1767422737088,0.01107788,89915.0,89910.0,0.01112223]
[1767422737284,0.01112173,89914.0,89910.0,0.01112223]
[1767422737977,0.01107788,89915.0,89910.0,0.01112223]
[1767422738120,0.01107788,89915.0,89910.0,0.06096577]
[1767422739034,0.01103496,89915.0,89910.0,0.06096577]
[1767422739826,0.01103496,89915.0,89910.0,0.01112223]
[1767422740015,0.01112173,89914.0,89909.0,0.01112235]
[1767422741249,0.01112173,89914.0,89910.0,0.01112223]
[1767422744210,0.01112173,89914.0,89909.0,0.01112235]
[1767422744412,0.01112173,89914.0,89910.0,0.01112223]
[1767422745398,0.01112173,89914.0,89909.0,0.06096589]
[1767422745660,0.01107929,89914.0,89909.0,0.06096589]
[1767422746756,0.01107929,89914.0,89910.0,0.01112223]
[1767422747930,0.01107929,89914.0,89909.0,0.06096589]
[1767422751955,0.01107929,89914.0,89910.0,0.01112223]
[1767422752162,0.01107929,89914.0,89910.0,0.06096577]
[1767422752500,0.01107929,89914.0,89910.0,0.04984354]
[1767422753106,0.01107929,89914.0,89910.0,0.06096577]
[1767422755378,0.01103496,89915.0,89910.0,0.06096577]
[1767422755883,0.01099328,89915.0,89910.0,0.06096577]
[1767422758744,0.01095004,89915.0,89910.0,0.06096577]
[1767422759143,0.01112173,89914.0,89908.0,0.01112248]
[1767422759376,0.01112186,89913.0,89908.0,0.01112248]
[1767422759871,0.01112198,89912.0,89907.0,0.06684324]
[1767422760081,0.01112186,89913.0,89908.0,0.01112248]
[1767422760302,0.01112186,89913.0,89909.0,0.01112235]
[1767422760459,0.01112186,89913.0,89907.0,0.01123063]
[1767422760460,0.01112198,89912.0,89907.0,0.01123063]
[1767422760657,0.01112223,89910.0,89907.0,0.00010803]
[1767422760862,0.0111221,89911.0,89907.0,0.00010803]
[1767422761284,0.01112223,89910.0,89907.0,0.00010803]
[1767422761465,0.0110807,89910.0,89907.0,0.00010803]
[1767422761874,0.0111221,89911.0,89907.0,0.00010803]
[1767422762050,0.0111221,89911.0,89907.0,0.01123063]
[1767422762460,0.01112198,89912.0,89907.0,0.01123063]
[1767422763344,0.01112198,89912.0,89908.0,0.01112248]
[1767422763540,0.05561235,89909.0,89907.0,0.00010803]
[1767422763783,0.05556851,89909.0,89907.0,0.00010803]
[1767422767134,0.01112334,89901.0,89898.0,0.01112]
[1767422767306,0.05561735,89900.0,89898.0,0.01112]
[1767422767710,0.06674361,89897.0,89895.0,0.05714464]
[1767422767912,0.01012484,89897.0,89895.0,0.05714464]
[1767422768095,0.0667423,89898.0,89895.0,0.05714464]
[1767422768299,0.05561982,89896.0,89894.0,0.00049762]
[1767422768513,0.01112446,89892.0,89888.0,0.04602464]
[1767422768695,0.0111247,89890.0,89887.0,0.01112]
[1767422769408,0.06674823,89890.0,89887.0,0.01112]
[1767422770953,0.0111247,89890.0,89887.0,0.01112]
[1767422774960,0.01112458,89891.0,89887.0,0.01112]
[1767422775404,0.0111247,89890.0,89887.0,0.01112]
[1767422775977,0.01112532,89885.0,89882.0,0.05714464]
[1767422776179,0.06675344,89883.0,89880.0,0.04602465]
[1767422777060,0.01112545,89884.0,89880.0,0.04602465]
[1767422778441,0.01112557,89883.0,89880.0,0.04602465]
[1767422779781,0.01112545,89884.0,89880.0,0.04602465]
[1767422780753,0.01112557,89883.0,89880.0,0.04602465]
[1767422781538,0.01112545,89884.0,89880.0,1e-08]
[1767422785558,0.05562518,89888.0,89885.0,0.04602464]
[1767422785759,0.01112507,89887.0,89885.0,0.04602464]
[1767422786091,0.01112507,89887.0,89882.0,0.04602464]
[1767422786468,0.01112507,89887.0,89882.0,0.05715033]
[1767422786674,0.0111252,89886.0,89882.0,0.05715033]
[1767422786852,0.01112507,89887.0,89882.0,0.05715033]
[1767422787258,0.01121719,89887.0,89882.0,0.05715033]
[1767422787770,0.01121719,89887.0,89882.0,0.01112569]
[1767422788139,0.01121719,89887.0,89883.0,0.01112557]
[1767422788871,0.01121719,89887.0,89882.0,0.01112569]
[1767422790762,0.01121719,89887.0,89881.0,0.01112582]
[1767422790982,0.0111252,89886.0,89881.0,0.01112582]
[1767422791534,0.01112557,89883.0,89880.0,1e-08]
[1767422791679,0.01112532,89885.0,89880.0,1e-08]
[1767422792272,0.0111252,89886.0,89881.0,0.01112582]
[1767422799034,0.01121719,89887.0,89882.0,0.01112569]
[1767422799944,9.212e-05,89887.0,89883.0,0.01112557]
[1767422800146,9.212e-05,89887.0,89882.0,0.01112569]
[1767422800296,9.212e-05,89887.0,89883.0,0.01112557]
[1767422800705,0.01121719,89887.0,89882.0,0.01112569]
[1767422801439,9.212e-05,89887.0,89883.0,0.01112557]
[1767422802440,9.212e-05,89887.0,89884.0,0.01112545]
[1767422805524,9.212e-05,89887.0,89882.0,0.01112569]
[1767422805692,0.01121719,89887.0,89883.0,0.01112557]
[1767422806091,9.212e-05,89887.0,89883.0,0.01112557]
[1767422807626,0.01121719,89887.0,89882.0,0.01112569]
[1767422808085,0.01121719,89887.0,89883.0,0.01112557]
[1767422809565,0.0111252,89886.0,89882.0,0.01112569]
[1767422809997,0.01121719,89887.0,89882.0,0.01112569]
[1767422810848,0.01121719,89887.0,89883.0,0.01112557]
[1767422811582,0.01121719,89887.0,89882.0,0.01112569]
[1767422813004,0.01121719,89887.0,89883.0,0.01112557]
[1767422814011,0.01121719,89887.0,89882.0,0.01112569]
[1767422814451,0.01121719,89887.0,89883.0,0.01112557]
[1767422814634,0.01121719,89887.0,89882.0,0.01112569]
[1767422815339,0.01112532,89885.0,89880.0,0.01112595]
[1767422815554,0.000999,89882.0,89880.0,1e-08]
[1767422815766,0.01112532,89885.0,89880.0,0.01112595]
[1767422815974,0.01112532,89885.0,89880.0,1e-08]
[1767422816184,0.0111252,89886.0,89881.0,0.01112582]
[1767422817650,0.0111252,89886.0,89882.0,0.01112569]
[1767422819265,0.0111252,89886.0,89881.0,0.01112582]
[1767422819848,0.0111252,89886.0,89880.0,0.01112594]
[1767422820014,0.0111252,89886.0,89881.0,0.01112582]
[1767422820216,0.01112545,89884.0,89879.0,0.02220224]
[1767422820452,0.01112557,89883.0,89879.0,0.01107618]
[1767422820655,0.01112545,89884.0,89876.0,0.01112644]
[1767422820979,0.000999,89879.0,89876.0,0.01112644]
[1767422821148,0.000999,89879.0,89877.0,0.0667575]
[1767422821356,0.06675243,89885.0,89880.0,0.01112594]
[1767422821758,0.0111252,89886.0,89880.0,0.01112594]
[1767422821940,0.0111247,89890.0,89885.0,0.04589719]
[1767422822143,0.01112,89892.0,89887.0,0.06675046]
[1767422822548,0.01112,89892.0,89889.0,0.01112483]
[1767422822750,0.01112,89892.0,89889.0,0.06674851]
[1767422822954,0.01112384,89897.0,89893.0,0.01112433]
[1767422823091,0.01112,89896.0,89893.0,0.01112433]
[1767422823734,0.01112,89896.0,89892.0,0.01112446]
[1767422823921,0.02224396,89896.0,89892.0,0.01112446]
[1767422824436,0.01112,89896.0,89892.0,0.01112446]
[1767422825614,0.02224396,89896.0,89892.0,0.01112446]
[1767422826657,0.01112334,89901.0,89895.0,0.01112408]
[1767422826818,0.01112,89899.0,89895.0,0.01112408]
[1767422827238,0.01162068,89903.0,89898.0,0.01112371]
[1767422827416,0.01112322,89902.0,89898.0,0.01112371]
[1767422827624,0.01162068,89903.0,89897.0,0.01112384]
[1767422827940,0.00049759,89903.0,89899.0,0.01112359]
[1767422828121,0.01162068,89903.0,89899.0,0.01112359]
[1767422828323,0.00049759,89903.0,89899.0,0.01112359]
[1767422828516,0.00049759,89903.0,89900.0,0.01112347]
[1767422830848,0.00049759,89903.0,89901.0,0.05561628]
[1767422835543,0.00045397,89903.0,89901.0,0.05561628]
[1767422838967,0.00045397,89903.0,89901.0,0.04493542]
[1767422840126,0.000999,89901.0,89900.0,0.06674039]
[1767422840326,0.00045397,89903.0,89900.0,0.06674039]
[1767422840777,0.00045397,89903.0,89901.0,0.05561627]
[1767422843078,0.00045397,89903.0,89901.0,0.05461727]
[1767422843257,0.00045397,89903.0,89900.0,0.06674039]
[1767422843455,0.00045397,89903.0,89900.0,0.01112347]
[1767422843761,0.00045397,89903.0,89898.0,0.01112371]
[1767422844186,0.00045397,89903.0,89898.0,0.06674218]
[1767422844339,0.00045397,89903.0,89900.0,0.01112347]
[1767422845553,0.00045397,89903.0,89896.0,0.01112396]
[1767422845703,0.01112322,89902.0,89897.0,0.01112384]
[1767422845904,0.00045397,89903.0,89899.0,0.01112359]
[1767422846109,0.00045397,89903.0,89897.0,0.01112384]
[1767422846110,0.01157706,89903.0,89897.0,0.01112384]
[1767422846482,0.01112334,89901.0,89895.0,0.01112]
[1767422846687,0.01112371,89898.0,89895.0,0.01112]
[1767422848418,0.01112359,89899.0,89895.0,0.01112]
[1767422848622,0.01112371,89898.0,89895.0,0.01112]
[1767422848919,0.01112384,89897.0,89893.0,0.01112433]
[1767422849030,0.01112371,89898.0,89893.0,0.01112433]
[1767422850175,0.01112384,89897.0,89892.0,0.01112446]
[1767422851238,0.01112384,89897.0,89893.0,0.01112433]
[1767422851532,0.01112371,89898.0,89894.0,0.01112421]
[1767422851700,0.01112371,89898.0,89893.0,0.01112433]
[1767422853346,0.01112384,89897.0,89891.0,0.01112458]
[1767422853520,0.01112359,89899.0,89892.0,0.06674649]
[1767422853924,0.01112347,89900.0,89895.0,0.01112408]
[1767422854347,0.01112359,89899.0,89894.0,0.01112421]
[1767422854622,0.01112347,89900.0,89895.0,0.01112408]
[1767422854828,0.01112359,89899.0,89893.0,0.01112433]
[1767422855285,0.01112371,89898.0,89893.0,0.01112433]
[1767422855491,0.01112359,89899.0,89894.0,0.01112421]
[1767422855845,0.01112371,89898.0,89891.0,0.01112458]
[1767422856076,0.01112384,89897.0,89891.0,0.01112458]
[1767422856274,0.01112384,89897.0,89893.0,0.01112433]
[1767422856484,0.01112384,89897.0,89892.0,0.01112446]
[1767422857254,0.01112384,89897.0,89891.0,0.01112458]
[1767422857587,0.01112495,89888.0,89880.0,0.04858698]
[1767422857793,0.05562577,89887.0,89885.0,0.01148026]
[1767422858922,0.06575091,89888.0,89885.0,0.01148026]
[1767422859920,0.01012595,89888.0,89885.0,0.01148026]
[1767422860619,0.05562539,89887.0,89885.0,0.01148026]
[1767422860821,0.05562539,89887.0,89879.0,0.01112606]
[1767422860822,0.06775113,89885.0,89882.0,0.01112]
[1767422861045,0.01112594,89880.0,89877.0,0.05970698]
[1767422861411,0.01112569,89882.0,89878.0,0.05971317]
[1767422861613,0.01112582,89881.0,89878.0,0.04858698]
[1767422861862,0.01112557,89883.0,89878.0,0.05971317]
[1767422862715,0.01112545,89884.0,89879.0,0.01112606]
[1767422863060,0.01112569,89882.0,89877.0,0.02224631]
[1767422863273,0.01112557,89883.0,89878.0,0.01112619]
[1767422863461,0.01112557,89883.0,89877.0,0.02224631]
[1767422863660,0.01112557,89883.0,89878.0,0.01112619]
[1767422865707,0.01112569,89882.0,89877.0,0.02224631]
[1767422865853,0.01112545,89884.0,89878.0,0.01112619]
[1767422866057,0.01112557,89883.0,89878.0,0.01112619]
[1767422866513,0.05563212,89877.0,89875.0,0.0002]
[1767422867287,0.05563206,89877.0,89875.0,0.0002]
[1767422867716,0.06675759,89878.0,89875.0,0.0002]
[1767422868671,0.01112619,89878.0,89875.0,0.0002]
[1767422869681,0.06675766,89878.0,89875.0,0.0002]
[1767422870212,0.01112656,89875.0,89871.0,0.01112705]
[1767422870464,0.01112656,89875.0,89872.0,0.04858698]
[1767422870663,0.01112631,89877.0,89872.0,0.05971391]
[1767422871091,0.0111273,89869.0,89862.0,0.0001508]
[1767422871217,0.01112767,89866.0,89863.0,0.04858698]
[1767422871429,0.01112755,89867.0,89863.0,0.04858698]
[1767422871620,0.01092743,89868.0,89863.0,0.04858698]
[1767422871838,0.01112743,89868.0,89865.0,0.04858698]
[1767422872063,0.0111273,89869.0,89865.0,0.04858698]
[1767422872567,0.01112718,89870.0,89865.0,0.05971478]
[1767422872779,0.21791152,89890.0,89862.0,0.06691932]
[1767422872780,0.00949308,89879.0,89873.0,0.05971379]
[1767422872973,0.01112582,89881.0,89873.0,0.05971379]
[1767422873278,0.01112594,89880.0,89876.0,0.01112644]
[1767422873436,0.01112606,89879.0,89874.0,0.01112668]
[1767422873637,0.01112619,89878.0,89874.0,0.04858698]
[1767422874219,0.01112619,89878.0,89874.0,0.05971366]
[1767422874640,0.01112594,89880.0,89875.0,0.01112656]
[1767422875186,0.02224569,89882.0,89875.0,0.06675888]
[1767422875392,0.01112582,89881.0,89876.0,0.01112644]
[1767422875597,0.01112582,89881.0,89876.0,0.05971342]
[1767422876056,0.01112594,89880.0,89876.0,0.04858698]
[1767422876210,0.01112594,89880.0,89864.0,0.04858698]
[1767422876412,0.06676068,89874.0,89866.0,0.01112767]
[1767422876724,0.01112693,89872.0,89866.0,0.01112767]
[1767422876889,0.01112705,89871.0,89867.0,0.04858698]
[1767422877091,0.01112693,89872.0,89867.0,0.05971453]
[1767422877332,0.01112705,89871.0,89867.0,0.04858698]
[1767422878094,0.01112718,89870.0,89867.0,0.04758798]
[1767422878613,0.06676354,89870.0,89867.0,0.04758798]
[1767422878813,0.01112718,89870.0,89867.0,0.04758798]
[1767422879173,0.01112718,89870.0,89865.0,0.07083478]
[1767422880162,0.0111273,89869.0,89865.0,0.05970698]
[1767422880730,0.01112743,89868.0,89865.0,0.05970698]
[1767422880932,0.01112693,89872.0,89865.0,0.07083478]
[1767422881281,0.01112693,89872.0,89868.0,0.000999]
[1767422881513,0.01112693,89872.0,89865.0,0.05318578]
[1767422881708,0.01112743,89868.0,89865.0,0.01112]
[1767422882478,0.01112705,89871.0,89865.0,0.01112]
[1767422882678,0.01112705,89871.0,89865.0,0.0222478]
[1767422882910,0.01112705,89871.0,89866.0,0.01112767]
[1767422883137,0.01112705,89871.0,89865.0,0.0222478]
[1767422883862,0.0111273,89869.0,89865.0,0.0587482]
[1767422884066,0.01112718,89870.0,89865.0,0.0587482]
[1767422885117,0.01112743,89868.0,89865.0,0.010121]
[1767422885296,0.06676476,89868.0,89865.0,0.010121]
[1767422885763,0.01112743,89868.0,89865.0,0.010121]
[1767422887874,0.06676204,89872.0,89865.0,0.010121]
[1767422888074,0.01112705,89871.0,89868.0,0.000999]
[1767422888409,0.03877341,89870.0,89864.0,0.00473098]
[1767422888589,0.03877341,89870.0,89867.0,0.01112755]
[1767422888955,0.03877341,89870.0,89866.0,0.01112767]
[1767422889451,0.03877341,89870.0,89867.0,0.01112755]
[1767422889702,0.01112644,89876.0,89868.0,0.0556366]
[1767422889840,0.01112644,89876.0,89869.0,0.0111273]
[1767422890652,0.01112656,89875.0,89869.0,0.0111273]
[1767422890912,0.000999,89869.0,89865.0,0.0111278]
[1767422891063,0.000999,89869.0,89864.0,0.01112792]
[1767422891274,0.01112705,89871.0,89865.0,0.0111278]
[1767422891979,0.01112693,89872.0,89866.0,0.01112767]
[1767422892208,0.01112705,89871.0,89865.0,0.0111278]
[1767422892414,0.01112705,89871.0,89866.0,0.0476282]
[1767422893382,0.01112718,89870.0,89866.0,0.0466292]
[1767422893560,0.0111273,89869.0,89866.0,0.0466292]
[1767422894358,0.01112842,89860.0,89855.0,0.04762821]
[1767422894560,0.01012966,89858.0,89855.0,0.04762821]
[1767422894717,0.01112829,89861.0,89855.0,0.04762821]
[1767422894919,0.0111273,89869.0,89860.0,0.01112842]
[1767422895116,0.01112743,89868.0,89859.0,0.01112854]
[1767422895345,0.000999,89859.0,89858.0,0.05875686]
[1767422895766,0.00036049,89859.0,89858.0,0.0476282]
[1767422896285,0.00036049,89859.0,89855.0,1e-08]
[1767422896422,0.01212766,89858.0,89855.0,1e-08]
[1767422896628,0.05564396,89857.0,89855.0,1e-08]
[1767422896833,0.01112866,89858.0,89855.0,1e-08]
[1767422897272,0.01112866,89858.0,89852.0,0.01132941]
[1767422897273,0.01112891,89856.0,89852.0,0.0002]
[1767422897472,0.00036049,89859.0,89855.0,0.0476282]
[1767422897671,0.01148903,89859.0,89855.0,0.0476282]
[1767422898483,0.00036049,89859.0,89855.0,0.0476282]
[1767422898740,0.01148903,89859.0,89855.0,0.0476282]
[1767422899137,0.01112866,89858.0,89855.0,0.0476282]
[1767422899521,0.01112829,89861.0,89859.0,0.0476282]
[1767422899730,0.01112755,89867.0,89862.0,0.0476282]
[1767422899961,0.0111273,89869.0,89864.0,0.0476282]
[1767422900336,0.0111273,89869.0,89864.0,0.0236282]
[1767422900876,0.0111273,89869.0,89865.0,0.0476282]
[1767422902611,0.01112743,89868.0,89865.0,0.0476282]
[1767422902871,0.0111273,89869.0,89865.0,0.0476282]
[1767422905178,0.01112755,89867.0,89861.0,0.01112829]
[1767422905379,0.01112743,89868.0,89860.0,0.05875662]
[1767422905637,0.01112755,89867.0,89860.0,0.05875662]
[1767422905841,0.0111273,89869.0,89861.0,0.05875649]
[1767422906066,0.01112755,89867.0,89861.0,0.0476282]
[1767422906270,0.01112755,89867.0,89861.0,0.05875649]
[1767422906626,0.01112743,89868.0,89861.0,0.05875649]
[1767422906800,0.01112755,89867.0,89861.0,0.05875649]
[1767422907201,0.01112767,89866.0,89861.0,0.0476282]
[1767422907407,0.01112755,89867.0,89861.0,0.05875649]
[1767422907611,0.01112755,89867.0,89861.0,0.0476282]
[1767422907818,0.0111278,89865.0,89861.0,0.0476282]
[1767422908012,0.01112767,89866.0,89861.0,0.0476282]
[1767422908417,0.0111278,89865.0,89861.0,0.0476282]
[1767422908627,0.0111278,89865.0,89861.0,0.0466292]
[1767422908823,0.01112792,89864.0,89861.0,0.0466292]
[1767422909164,0.01112792,89864.0,89859.0,0.05642571]
[1767422909721,0.0111278,89865.0,89859.0,0.05642571]
[1767422910131,0.01112767,89866.0,89859.0,0.05642571]
[1767422910328,0.0111278,89865.0,89859.0,0.05642571]
[1767422910964,0.0111278,89865.0,89859.0,0.01116]
[1767422910965,0.01112817,89862.0,89859.0,0.01116]
[1767422912942,0.01112829,89861.0,89853.0,0.01112928]
[1767422913144,0.01121248,89861.0,89855.0,0.01116]
[1767422914316,0.01112842,89860.0,89855.0,0.01116]
[1767422914518,0.01112842,89860.0,89853.0,0.01116]
[1767422914686,8.419e-05,89861.0,89854.0,0.04729133]
[1767422915512,0.01112842,89860.0,89854.0,0.04729133]
[1767422915730,8.419e-05,89861.0,89860.0,0.000999]
[1767422916048,8.419e-05,89861.0,89856.0,0.04729133]
[1767422916587,1.9e-07,89861.0,89857.0,0.01112879]
[1767422916792,1.9e-07,89861.0,89857.0,0.05842012]
[1767422917252,1.9e-07,89861.0,89857.0,0.04729133]
[1767422918031,1.9e-07,89861.0,89857.0,0.05842012]
[1767422918226,1.9e-07,89861.0,89857.0,0.04729133]
[1767422918484,1.9e-07,89861.0,89857.0,0.05842012]
[1767422918684,1.9e-07,89861.0,89857.0,0.04729133]
[1767422920153,1.9e-07,89861.0,89857.0,0.05842012]
[1767422920574,1.9e-07,89861.0,89857.0,0.04729133]
[1767422920774,1.9e-07,89861.0,89857.0,0.05842012]
[1767422920932,1.9e-07,89861.0,89857.0,0.04729133]
[1767422921132,1.9e-07,89861.0,89857.0,0.05842012]
[1767422921655,1.9e-07,89861.0,89857.0,0.04729133]
[1767422924573,0.01112848,89861.0,89857.0,0.04729133]
[1767422924825,1.9e-07,89861.0,89857.0,0.04729133]
[1767422925662,0.01112842,89860.0,89857.0,0.04729133]
[1767422926067,0.01112848,89861.0,89857.0,0.04729133]
[1767422926286,0.01112848,89861.0,89854.0,0.01112916]
[1767422926488,0.01112848,89861.0,89854.0,0.05842049]
[1767422926693,1.9e-07,89861.0,89855.0,0.05842037]
[1767422928236,1.9e-07,89861.0,89856.0,0.01112891]
[1767422928443,1.9e-07,89861.0,89855.0,0.05842037]
[1767422930531,0.01112848,89861.0,89855.0,0.05842037]
[1767422930729,0.01112848,89861.0,89855.0,0.04729133]
[1767422931743,0.06677028,89861.0,89855.0,0.04729133]
[1767422931946,0.01112854,89859.0,89855.0,0.04729133]
[1767422932153,0.01112848,89861.0,89855.0,0.04729133]
[1767422932580,0.01112854,89859.0,89855.0,0.04729133]